Cogmind - Beta 13 @@@ ROGUE MODE // 2024.04.16 @ 12:12:52 Player: Stavbearer Result: Destroyed by Y-64 Sentinel with KE Penetrator Performance ------------- Evolutions (5) 2500 Regions Visited (10) 2000 Robots Destroyed (39) 195 Value Destroyed (764) 764 Prototype IDs (29) 580 Alien Tech Used (0) 0 Bonus (984) 984 TOTAL SCORE: 7023 Bonus ------- Follower Combat Kills 184 Entered DSFs 500 Aligned with FarCom 300 Cogmind --------- Core Integrity 0/1000 Matter 300/300 Energy 100/100 System Corruption 0% Temperature Cool (9) Movement Core (50) Location -5/Extension Parts ------- > --- POWER (2) -------- (None) > --- PROPULSION (5) --- (None) > --- UTILITY (7) ------ Machine Analyzer > --- WEAPON (3) ------- Heavy Pick > --- INVENTORY (5) ---- Improved Coolant Injector Improved Datajack Peak State ------------ > --- POWER ------------ Light Nuclear Core Light Nuclear Core > --- PROPULSION ------- Aerolev Unit Aerolev Unit Gyrokinetic Inverter Surge Thruster > --- UTILITY ---------- Weight Redist. System Advanced Weight Redist. System Machine Analyzer Melee Analysis Suite Reaction Control System Hardened Medium Armor Plating Focal Shield > --- WEAPON ----------- Wave Gun KE Penetrator Heavy Pick > --- INVENTORY -------- Advanced Beam Rifle Improved Datajack Heavy Pick Heavy Pick [Rating: 63] Favorites ----------- Power Light Nuclear Core Engine Light Ion Engine Power Core Light Nuclear Core Propulsion Hover Unit Treads Improved Treads Leg Flexi-carbon Leg Wheel Wheel Hover Unit Hover Unit Flight Unit Flight Unit Utility Advanced Weight Redist. System Device Advanced Weight Redist. System Storage Small Storage Unit Processor Machine Analyzer Protection Hardened Medium Armor Plating Weapon Light Assault Rifle Energy Gun Wave Gun Ballistic Gun Light Assault Rifle Ballistic Cannon Improved Light Cannon Special Weapon Mining Laser Impact Weapon Powered Hammer Piercing Weapon Heavy Pick Special Melee Weapon Datajack Build | -11 -10 -10 -10 -9 -8 -7 -6 -6 -5 -5 ------- Run | Yrd Mat Min Exi Min Mat Fac Fac DSF Fac Ext Slots Evolved 10 | . . . . . 4 2 2 . 2 . Power 1 | . . . . . . . 1 . . . Propulsion 3 | . . . . . 1 . 1 . 1 . Utility 5 | . . . . . 2 2 . . 1 . Weapon 1 | . . . . . 1 . . . . . Parts Attached 103 | 7 7 5 1 6 21 8 4 13 13 18 Power 11 | 1 . 1 . . 1 1 1 2 1 3 Engine 4 | 1 . 1 . . . . 1 . . 1 Core 7 | . . . . . 1 1 . 2 1 2 Reactor . | . . . . . . . . . . . Propulsion 36 | 2 4 . . 1 6 4 2 5 5 7 Treads 1 | . . . . . . . . . . 1 Leg 4 | . . . . . . . . . . 4 Wheel 2 | 2 . . . . . . . . . . Hover 18 | . 2 . . 1 3 4 1 2 5 . Flight 11 | . 2 . . . 3 . 1 3 . 2 Utility 21 | 2 2 . 1 . 4 3 1 2 4 2 Device 9 | 1 1 . . . 1 2 . 1 2 1 Storage 1 | 1 . . . . . . . . . . Processor 5 | . 1 . 1 . 2 1 . . . . Hackware . | . . . . . . . . . . . Protection 6 | . . . . . 1 . 1 1 2 1 Artifact . | . . . . . . . . . . . Weapon 35 | 2 1 4 . 5 10 . . 4 3 6 Energy Gun 7 | . . . . . 2 . . 1 2 2 Energy Cannon . | . . . . . . . . . . . Ballistic Gun 14 | 2 1 2 . 2 5 . . . 1 1 Ballistic Cannon 3 | . . . . 2 . . . . . 1 Launcher . | . . . . . . . . . . . Special Weapon 3 | . . 2 . 1 . . . . . . Impact Weapon 2 | . . . . . 2 . . . . . Slashing Weapon . | . . . . . . . . . . . Piercing Weapon 5 | . . . . . . . . 3 . 2 Special Melee Weapon 1 | . . . . . 1 . . . . . Unidentified Prototypes 3 | . . . 1 . 1 1 . . . . Parts Lost 41 | . . . . . 3 1 1 6 . 30 Power 6 | . . . . . . . . 1 . 5 Propulsion 16 | . . . . . 2 . . 3 . 11 Utility 12 | . . . . . 1 1 . 2 . 8 Weapon 7 | . . . . . . . 1 . . 6 Highest Loss Streak 10 | . . . . . 3 1 1 3 . 10 To Critical Strikes . | . . . . . . . . . . . Average Slot Usage (%) 89 | . 93 100 100 100 96 95 90 71 80 75 Engine 6 | . 14 14 14 14 7 . 6 2 . . Core 4 | . . . . . 1 6 6 7 11 8 Hover 17 | . 6 28 28 28 22 6 20 10 12 8 Flight 4 | . 6 . . . 3 16 6 4 5 3 Device 11 | . 15 14 3 . 7 13 13 13 18 17 Processor 18 | . 1 14 24 28 26 27 20 15 11 10 Protection 1 | . . . . . . . 6 4 5 3 Energy Gun 3 | . . . . . . 15 7 1 3 5 Ballistic Gun 10 | . 28 15 14 15 25 . . . 1 2 Ballistic Cannon 1 | . . . . 11 . . . . . . Special Weapon 2 | . . 12 14 1 . . . . . . Piercing Weapon 2 | . . . . . . . . 9 6 5 Naked Turns . | . . . . . . . . . . . Heaviest Build 35 | 14 14 8 6 8 14 14 29 26 33 35 Greatest Support 66 | 20 20 12 12 12 27 33 33 25 36 66 Greatest Overweight (x) 5 | . 3 . . . 4 1 . 1 2 5 Average Overweight (x) . | . . . . . . . . . . . Largest Inventory Capacity 8 | 8 8 5 5 5 5 5 5 5 5 5 Average Capacity 5 | 6 6 5 5 5 5 5 5 5 5 5 Most Carried 8 | 8 7 5 5 5 5 5 4 5 5 5 Average Carried 4 | 3 5 4 4 4 4 4 3 2 4 3 Final Capacity 8 | 8 5 5 5 5 5 5 5 5 5 5 Final Carried 7 | 7 5 5 5 5 5 5 4 3 5 2 Class Distribution -------------------- 30% | Mutant 29% | Scavenger-Mutant 26% | Scavenger-Scout 8% | Gladiator 5% | Scout Dominant Class ---------------- Mutant | -10/Materials Scavenger-Mutant | -10/Mines Scavenger-Mutant | -10/Exiles Scavenger-Scout | -9/Mines Scavenger-Scout | -8/Materials Scavenger-Scout | -7/Factory Mutant | -6/Factory Gladiator | -6/DSF Scavenger-Mutant | -5/Factory Mutant | -5/Extension Resources | -11 -10 -10 -10 -9 -8 -7 -6 -6 -5 -5 ----------- Run | Yrd Mat Min Exi Min Mat Fac Fac DSF Fac Ext Matter Collected 1371 | 326 116 15 . 165 102 247 . 131 12 257 Remotely . | . . . . . . . . . . . Salvage Created 1344 | 159 183 40 . 68 87 81 . 243 12 471 Parts 76 | 10 15 5 . 8 6 1 . 14 1 16 Haulers Intercepted . | . . . . . . . . . . . Recyclers Shooed 1 | . 1 . . . . . . . . . Parts Field Recycled . | . . . . . . . . . . . Retrieved Matter . | . . . . . . . . . . . Parts Self-Destructed . | . . . . . . . . . . . Prevented . | . . . . . . . . . . . Kills | -11 -10 -10 -10 -9 -8 -7 -6 -6 -5 -5 ------- Run | Yrd Mat Min Exi Min Mat Fac Fac DSF Fac Ext Combat Hostiles Destroyed 26 | . 4 3 . 5 3 1 . 7 . 3 Melee 8 | . . . . . . . . 6 . 2 Guns 15 | . 4 3 . 3 3 . . 1 . 1 Cannons 2 | . . . . 2 . . . . . . Classes Destroyed 11 | 2 4 . . . 1 2 . 2 . . Worker 2 | . . . . . . 1 . . 1 . Builder 1 | . . . . . 1 . . . . . Tunneler 4 | 3 . . . . . . . . . 1 Recycler 4 | 1 1 . . . . . . . . 2 Operator 1 | . 1 . . . . . . . . . Watcher 1 | . 1 . . . . . . . . . Swarmer 13 | . 3 3 . 5 2 . . . . . Cutter 5 | . . . . . . . . 5 . . Grunt 4 | . 1 . . . 1 . . . . 2 Sentry 3 | . . . . . . 1 . 1 . 1 Specialist 1 | . . . . . . . . 1 . . Best Kill Streak 4 | 2 4 3 . 3 4 1 . 3 1 2 Combat Bots Only 3 | . 3 3 . 3 3 1 . 3 . 2 Max Kills in Single Turn 2 | 1 2 1 . 1 2 1 . 1 1 1 Gunslinging 1 | . 1 . . . . . . . . . Exploded . | . . . . . . . . . . . Melee 1 | . . . . . . . . 1 . 1 Uniques/NPCs Destroyed . | . . . . . . . . . . . Combat | -11 -10 -10 -10 -9 -8 -7 -6 -6 -5 -5 -------- Run | Yrd Mat Min Exi Min Mat Fac Fac DSF Fac Ext Hostile Shots Fired 416 | . 10 8 . 11 21 54 . 70 . 242 Missed 145 | . 4 2 . 5 3 33 . 35 . 63 Damage Taken 4310 | . 51 50 . 49 216 175 58 578 . 3133 Core 1183 | . 9 . . 15 18 30 . 91 . 1020 Absorbed by Shields . | . . . . . . . . . . . Redirected to Shielding 52 | . . . . . . . . . . 52 Ignored by Resistances 104 | . . . . . . . . 33 . 71 Regen/Repaired (Parts) 17 | . . . . . . 17 . . . . Core Remaining (%) 94 | 100 . . . 90 96 95 . 89 . . Volleys Fired 97 | 14 19 12 . 15 7 2 . 2 . 26 Largest 3 | 2 2 2 . 2 3 2 . 1 . 2 Hottest 162 | 40 40 100 . 100 75 111 . 61 . 162 Shots Fired 180 | 28 38 17 . 25 21 4 . 3 . 44 Gun 158 | 28 38 10 . 10 21 4 . 3 . 44 Cannon 10 | . . . . 10 . . . . . . Launcher . | . . . . . . . . . . . Special 12 | . . 7 . 5 . . . . . . Kinetic 131 | 28 38 10 . 20 21 . . . . 14 Thermal 47 | . . 7 . 5 . 2 . 3 . 30 Explosive . | . . . . . . . . . . . Electromagnetic 2 | . . . . . . 2 . . . . Robot Hit Streak 13 | 4 12 13 . 4 4 4 . 5 . 12 Robot Miss Streak 14 | 2 4 1 . 4 14 . . 2 . 6 Penetration Max 1 | . . . . . . . . . . 1 Secondary Targets 3 | . 1 1 . . 1 . . . . . Max Gunslinging Chain 1 | . 1 1 . . 1 . . . . . Shots Hit Robots 136 | 17 24 7 . 7 11 9 . 15 1 45 Core Hits 62 | 6 11 5 . 5 9 1 . 7 1 17 Critical Kills 2 | . . . . 1 . . . . . 1 Critical Parts Destroyed . | . . . . . . . . . . . Critical Strikes 6 | . . . . 1 . 1 . . . 4 Destroy 2 | . . . . 1 . . . . . 1 Smash 1 | . . . . . . 1 . . . . Impale 3 | . . . . . . . . . . 3 Melee Attacks 60 | . . . . . . 6 . 19 1 34 Impact 6 | . . . . . . 6 . . . . Slashing . | . . . . . . . . . . . Piercing 54 | . . . . . . . . 19 1 34 Sneak Attacks 6 | . . . . . . 2 . 1 1 2 Combat Hostiles 2 | . . . . . . 1 . 1 . . Follow-up Attacks 4 | . . . . . . . . 2 . 2 Damage Inflicted 3406 | 191 211 62 . 91 261 424 . 597 81 1488 Guns 1624 | 191 211 62 . 32 251 70 . 20 . 787 Cannons 59 | . . . . 59 . . . . . . Explosions . | . . . . . . . . . . . Melee 1705 | . . . . . . 354 . 577 81 693 Ramming 18 | . . . . . 10 . . . . 8 Kinetic 1195 | 191 211 62 . 91 251 . . . . 389 Thermal 458 | . . . . . . 40 . 20 . 398 Explosive . | . . . . . . . . . . . Electromagnetic 30 | . . . . . . 30 . . . . Impact 354 | . . . . . . 354 . . . . Slashing . | . . . . . . . . . . . Piercing 1351 | . . . . . . . . 577 81 693 Highest Corruption 5 | . . . . . . . . 5 . . Average Corruption 5 | . . . . . . . . 5 . . Corruption Purged . | . . . . . . . . . . . Corruption Blocked . | . . . . . . . . . . . Effects 2 | . . . . . . . . 2 . . Data Loss (minor) 1 | . . . . . . . . 1 . . Misfires 1 | . . . . . . . . 1 . . Overload Shots . | . . . . . . . . . . . Overflow Damage 176 | . . . . . . 127 . 29 . 20 Projectiles . | . . . . . . . . . . . Explosions . | . . . . . . . . . . . Melee 176 | . . . . . . 127 . 29 . 20 Knockbacks 1 | . . . . . . 1 . . . . Impact 1 | . . . . . . 1 . . . . Kinetic . | . . . . . . . . . . . Secondary . | . . . . . . . . . . . Self-Inflicted Damage 5 | . . . . . 5 . . . . . Shots . | . . . . . . . . . . . Rammed 1 | . . . . . 1 . . . . . Targets Rammed 2 | . . . . . 1 . . . . 1 Kicked 1 | . . . . . . . . . . 1 Crushed . | . . . . . . . . . . . Highest Temperature 437 | . 8 58 . 86 67 102 . . . 437 Average Temperature 81 | . 4 20 . 29 23 57 . . . 154 Received Heat Transfer 813 | . . . . . 72 60 . 36 . 645 Effects 2 | . . . . . . . . . . 2 Shutdowns 1 | . . . . . . . . . . 1 Short Circuit 1 | . . . . . . . . . . 1 Siege Activations . | . . . . . . . . . . . Robots Corrupted 1 | . . . . . . 1 . . . . Combat Hostiles 1 | . . . . . . 1 . . . . Parts Fried . | . . . . . . . . . . . Impact Corruptions 4 | . . . . . . 4 . . . . Robots Melted . | . . . . . . . . . . . Combat Hostiles . | . . . . . . . . . . . Parts Melted 1 | . . . . . . . . . . 1 Heat Transferred 703 | . . . . . . 74 . 37 . 592 Parts Sabotaged . | . . . . . . . . . . . Parts Stolen . | . . . . . . . . . . . Parts Stripped . | . . . . . . . . . . . Power Chain Reactions . | . . . . . . . . . . . Alert | -11 -10 -10 -10 -9 -8 -7 -6 -6 -5 -5 ------- Run | Yrd Mat Min Exi Min Mat Fac Fac DSF Fac Ext Peak Influence 191 | 20 180 145 . 177 191 61 31 141 78 82 Initial 73 | . 13 70 . . 68 . 29 21 73 37 Average 50 | 8 94 118 . 15 93 37 27 58 73 30 Maximum Alert Level . | . . . . . . . . . . . Low Security (%) 100 | 100 100 100 . 100 100 100 100 100 100 100 Level 1 . | . . . . . . . . . . . Level 2 . | . . . . . . . . . . . Level 3 . | . . . . . . . . . . . Level 4 . | . . . . . . . . . . . Level 5 . | . . . . . . . . . . . High Security . | . . . . . . . . . . . Max Security . | . . . . . . . . . . . Squads Dispatched 5 | . 1 . . . . 1 . 2 . 1 Investigation 1 | . . . . . . 1 . . . . Extermination . | . . . . . . . . . . . Reinforcement 4 | . 1 . . . . . . 2 . 1 Assault . | . . . . . . . . . . . Garrison . | . . . . . . . . . . . Intercept . | . . . . . . . . . . . Searches Triggered . | . . . . . . . . . . . Construction Impeded 1 | . . . . . . . . . . 1 Haulers Reinforced . | . . . . . . . . . . . Active Scanning Responses . | . . . . . . . . . . . Cargo Convoy Interrupts . | . . . . . . . . . . . Stealth | -11 -10 -10 -10 -9 -8 -7 -6 -6 -5 -5 --------- Run | Yrd Mat Min Exi Min Mat Fac Fac DSF Fac Ext Distress Signals 2 | . 1 . . . . . . . . 1 Communications Jammed . | . . . . . . . . . . . Distress Signals . | . . . . . . . . . . . Times Spotted 57 | . 6 3 . 9 8 1 . 13 . 17 Peak Tracking Total 8 | . 4 3 . 4 8 1 . 5 . 8 Tactical Retreats 6 | . 1 . . 1 . . . 2 . 2 Traps | -11 -10 -10 -10 -9 -8 -7 -6 -6 -5 -5 ------- Run | Yrd Mat Min Exi Min Mat Fac Fac DSF Fac Ext Traps Triggered 6 | . . . . . . . 1 2 3 . Indirectly . | . . . . . . . . . . . Trap Hack Attempts . | . . . . . . . . . . . Triggered . | . . . . . . . . . . . Disarmed 8 | . . . . . 4 . . . . 4 Reprogrammed . | . . . . . . . . . . . Reused . | . . . . . . . . . . . Traps Extracted . | . . . . . . . . . . . Installed . | . . . . . . . . . . . Triggered . | . . . . . . . . . . . Machines | -11 -10 -10 -10 -9 -8 -7 -6 -6 -5 -5 ---------- Run | Yrd Mat Min Exi Min Mat Fac Fac DSF Fac Ext Machines Disabled 3 | . . . . 1 1 . . . . 1 Max in Single Turn 1 | . . . . 1 . . . . . 1 Machines Repaired . | . . . . . . . . . . . Machines Dismantled . | . . . . . . . . . . . Machines Sabotaged . | . . . . . . . . . . . Overloaded Fab Kills . | . . . . . . . . . . . Hacking | -11 -10 -10 -10 -9 -8 -7 -6 -6 -5 -5 --------- Run | Yrd Mat Min Exi Min Mat Fac Fac DSF Fac Ext Machines Accessed 30 | . 2 . 4 . 7 6 2 . 4 5 Terminals 20 | . 2 . . . 7 3 1 . 2 5 Fabricators 1 | . . . . . . . . . 1 . Repair Stations 4 | . . . . . . 3 . . 1 . Recycling Units . | . . . . . . . . . . . Scanalyzers 1 | . . . . . . . 1 . . . Garrison Access . | . . . . . . . . . . . Total Hacks 106 | . 5 . 40 . 23 12 4 . 6 16 Successful 68 | . 1 . 40 . 10 3 2 . 2 10 Failed 38 | . 4 . . . 13 9 2 . 4 6 Catastrophic 8 | . . . . . 4 2 . . 1 1 Database Lockouts . | . . . . . . . . . . . Manual 6 | . . . 3 . 1 . . . . 2 Terminals 52 | . 5 . . . 23 5 1 . 2 16 Fabricators 1 | . . . . . . . . . 1 . Repair Stations 10 | . . . . . . 7 . . 3 . Recycling Units . | . . . . . . . . . . . Scanalyzers 3 | . . . . . . . 3 . . . Garrison Access . | . . . . . . . . . . . Terminal Hacks 64 | . 1 . 40 . 10 . 1 . 2 10 Record 47 | . . . 39 . 2 . . . . 6 Prototype ID Bank 2 | . 1 . . . 1 . . . . . Open Door 2 | . . . . . . . . . 1 1 Open DSF 2 | . . . . . . . 1 . 1 . Branch Access Points 1 | . . . . . . . . . . 1 Alert Level 2 | . . . . . 1 . . . . 1 Locate Traps 2 | . . . . . 2 . . . . . Disarm Traps 3 | . . . . . 2 . . . . 1 Hauler Manifests 1 | . . . . . 1 . . . . . Zone Layout 1 | . . . . . 1 . . . . . Derelict Proto ID Bank 1 | . . . 1 . . . . . . . Fabricator Hacks . | . . . . . . . . . . . Repair Station Hacks 3 | . . . . . . 3 . . . . Scan Component 2 | . . . . . . 2 . . . . Repair 1 | . . . . . . 1 . . . . Recycling Unit Hacks . | . . . . . . . . . . . Scanalyzer 1 | . . . . . . . 1 . . . Insert Component 1 | . . . . . . . 1 . . . Garrison Access Hacks . | . . . . . . . . . . . Unauthorized Hacks . | . . . . . . . . . . . Terminals . | . . . . . . . . . . . Fabricators . | . . . . . . . . . . . Repair Stations . | . . . . . . . . . . . Recycling Units . | . . . . . . . . . . . Scanalyzers . | . . . . . . . . . . . Garrison Access . | . . . . . . . . . . . Data Cores Recovered 1 | . . . . . 1 . . . . . Used 1 | . . . . . 1 . . . . . Hacking Detections 22 | . 2 . . . 6 6 1 . 2 5 Full Trace Events 1 | . . . . . . 1 . . . . Feedback Events . | . . . . . . . . . . . Feedback Blocked . | . . . . . . . . . . . Robot Schematics Acquired . | . . . . . . . . . . . Robots Built . | . . . . . . . . . . . Authchips . | . . . . . . . . . . . Time . | . . . . . . . . . . . Total Robot Build Rating . | . . . . . . . . . . . Part Schematics Acquired . | . . . . . . . . . . . Parts Built . | . . . . . . . . . . . Authchips . | . . . . . . . . . . . Time . | . . . . . . . . . . . Total Part Build Rating . | . . . . . . . . . . . Parts Repaired 1 | . . . . . . 1 . . . . Time 19 | . . . . . . 19 . . . . Parts Recycled . | . . . . . . . . . . . Recycled Matter . | . . . . . . . . . . . Retrieved Matter . | . . . . . . . . . . . Retrieved Components . | . . . . . . . . . . . Parts Scanalyzed 1 | . . . . . . . 1 . . . Part Schematics Acquired . | . . . . . . . . . . . Parts Damaged 1 | . . . . . . . 1 . . . Bothacking | -11 -10 -10 -10 -9 -8 -7 -6 -6 -5 -5 ------------ Run | Yrd Mat Min Exi Min Mat Fac Fac DSF Fac Ext Used RIF Installer . | . . . . . . . . . . . Robots Hacked . | . . . . . . . . . . . Non-combat . | . . . . . . . . . . . Combat . | . . . . . . . . . . . Robot Hacks Applied . | . . . . . . . . . . . Relay Couplers Released . | . . . . . . . . . . . Fabnet Peak Effective % . | . . . . . . . . . . . Robots Rewired . | . . . . . . . . . . . Allies Hacked . | . . . . . . . . . . . Hacks Repelled . | . . . . . . . . . . . Allies | -11 -10 -10 -10 -9 -8 -7 -6 -6 -5 -5 -------- Run | Yrd Mat Min Exi Min Mat Fac Fac DSF Fac Ext Total Allies 4 | . . . . 2 . . . . . 2 Largest Group 2 | . . . . 2 1 1 . . . 2 Highest-Rated Group 59 | . . . . 49 31 31 . . . 59 Highest-Rated Ally 39 | . . . . 31 31 31 . . . 39 Total Orders . | . . . . . . . . . . . Ally Attacks 47 | . . . . 10 14 3 . . . 20 Total Damage 797 | . . . . 125 148 43 . . . 481 Kills 9 | . . . . 2 4 1 . . . 2 Allies Corrupted . | . . . . . . . . . . . Allies Melted 1 | . . . . . . . . . . 1 Intel | -11 -10 -10 -10 -9 -8 -7 -6 -6 -5 -5 ------- Run | Yrd Mat Min Exi Min Mat Fac Fac DSF Fac Ext Robot Analysis Total . | . . . . . . . . . . . Derelict Logs Recovered 2 | . . 1 . 1 . . . . . . Drone Launches . | . . . . . . . . . . . Drone Recoveries . | . . . . . . . . . . . Exploration | -11 -10 -10 -10 -9 -8 -7 -6 -6 -5 -5 ------------- Run | Yrd Mat Min Exi Min Mat Fac Fac DSF Fac Ext Turns Passed 3538 | 154 210 165 381 491 419 301 157 198 264 798 Spaces Moved 4612 | 118 183 203 674 721 630 624 342 187 439 491 Core 41 | 5 . . . . 1 1 . 10 5 19 Treads 60 | . . . . . . . . . . 60 Legs 107 | . . . . . . . . . . 107 Wheels 185 | 113 72 . . . . . . . . . Hover 3593 | . 56 203 674 721 543 165 342 150 434 305 Flight 626 | . 55 . . . 86 458 . 27 . . Fastest Speed 34 | 50 37 56 56 56 34 34 42 37 46 48 Average Speed 56 | 78 61 56 56 56 50 36 44 47 47 98 Slowest Speed 300 | 80 280 56 56 56 280 100 46 120 150 300 Overloaded Moves . | . . . . . . . . . . . Propulsion Burnouts . | . . . . . . . . . . . Robots Hopped 4 | . . . . . . 4 . . . . Cave-ins Triggered . | . . . . . . . . . . . Exploration Rate (%) 38 | 5 17 31 93 91 35 10 7 79 8 44 Regions Visited 10 Branch Regions 4 Pre-discovered Areas 1 | . . . 1 . . . . . . . Known Exits Taken 1 | . . . . . . . 1 . . . Unknown Exits Taken 8 | 1 1 1 1 1 1 1 . . 1 . Scrap Searched 1 | . . . . 1 . . . . . . Spaces Dug 7 | . . 7 . . . . . . . . Terrain Destroyed 8 | . . 7 . . . . . . . 1 Melee . | . . . . . . . . . . . Projectile 8 | . . 7 . . . . . . . 1 AOE . | . . . . . . . . . . . Terrain Rammed . | . . . . . . . . . . . Walls Destroyed . | . . . . . . . . . . . Machines Disabled . | . . . . . . . . . . . Actions | -11 -10 -10 -10 -9 -8 -7 -6 -6 -5 -5 --------- Run | Yrd Mat Min Exi Min Mat Fac Fac DSF Fac Ext Total 5256 | 151 248 223 677 774 714 680 348 261 486 694 Wait 261 | . 32 1 . 26 21 32 . 6 27 116 Move 4593 | 117 182 202 673 720 629 615 340 186 438 491 Hop 4 | . . . . . . 4 . . . . Pick Up 49 | 10 1 1 1 3 14 5 1 5 5 3 Fast Attach 57 | 7 6 . 1 1 11 6 . 5 9 11 Attach 30 | . 1 . . 1 5 2 4 8 4 5 Detach 8 | . . . . . 1 . 2 4 1 . Swap 16 | . . 5 . 4 5 . . . . 2 Drop 51 | 3 7 2 2 4 20 8 . 3 1 1 Fire 97 | 14 19 12 . 15 7 2 . 2 . 26 Melee 53 | . . . . . . 6 . 16 1 30 Ram 1 | . . . . . 1 . . . . . Kick 1 | . . . . . . . . . . 1 Crush . | . . . . . . . . . . . Escape Stasis 27 | . . . . . . . 1 26 . . Rewire 8 | . . . . . . . . . . 8 Trap . | . . . . . . . . . . . Miscellaneous . | . . . . . . . . . . . Route ------- -11/Scrapyard -10/Materials -10/Mines (discovered 2 exits: [*Mat] / *Exi) -10/Exiles (discovered 2 exits: [*Min x2]) -9/Mines -8/Materials -7/Factory (discovered 2 exits: *Fac / Sto) -6/Factory -6/DSF -5/Factory -5/Extension (discovered 1 exit: Cet) History --------- Turn | Location | Event 16 | -11/Scrapyard | Discovered new exit (range 16) 155 | -11/Scrapyard | Entered Materials 231 | -10/Materials | Discovered new exit (range 13) 365 | -10/Materials | Entered Mines 382 | -10/Mines | Met a Derelict bent on vengeance 461 | -10/Mines | Discovered new exit (range 6) 526 | -10/Mines | Deemed a non-threat by the Exiles lab entrance 526 | -10/Mines | Discovered new exit (range 5) 530 | -10/Mines | Entered Exiles 538 | -10/Exiles | Discovered new exit (range 15) 555 | -10/Exiles | Build established: Scavenger-Mutant 556 | -10/Exiles | Met 8R-AWN 564 | -10/Exiles | Met EX-HEX 588 | -10/Exiles | Met EX-BIN 600 | -10/Exiles | Aligned with FarCom system 601 | -10/Exiles | Given EX-Vault access code 622 | -10/Exiles | Opened EX-Vault 626 | -10/Exiles | Found Prototype Processor 626 | -10/Exiles | Identified 0b10 Alert Chip 658 | -10/Exiles | Warned to stay clear of 0b10 Research branches 676 | -10/Exiles | Met EX-DEC 699 | -10/Exiles | Visited The Gauntlet 788 | -10/Exiles | Learned location of Zion (-6) 817 | -10/Exiles | Discovered new exit (range 17) 911 | -10/Exiles | Left Exiles lab with 0b10 Alert Chip 911 | -10/Exiles | Entered Mines 922 | -9/Mines | Learned location of 1 exit from Lower Caves 1214 | -9/Mines | Build established: Scavenger-Scout 1387 | -9/Mines | Discovered new exit (range 5) 1402 | -9/Mines | Entered Materials 1402 | -8/Materials | Accompanied by 1 ally 1402 | -8/Materials | Evolved 4 slots: Propulsion x1, Utility x2, Weapon x1 1407 | -8/Materials | Led the pair of lost Derelicts to an unsafe place 1779 | -8/Materials | Lost 3 parts (2n1u) 1793 | -8/Materials | Discovered new exit (range 10) 1821 | -8/Materials | Entered Factory 1821 | -7/Factory | Accompanied by 1 ally 1821 | -7/Factory | Evolved 2 slots: Utility x2 1822 | -7/Factory | Identified exit to Storage 1869 | -7/Factory | Repaired Lgt. Nuclear Core 2099 | -7/Factory | Discovered new exit (range 11) 2122 | -7/Factory | Entered another Factory area 2122 | -6/Factory | Evolved 2 slots: Power x1, Propulsion x1 2127 | -6/Factory | Identified exit to DSF 2279 | -6/Factory | Entered DSF 2316 | -6/DSF | Additional patrols routed to DSF 2331 | -6/DSF | Build established: Mutant 2388 | -6/DSF | Lost 3 parts (2n1u) 2433 | -6/DSF | Lost 3 parts (1p1n1u) 2467 | -6/DSF | Discovered new exit (range 15) 2477 | -6/DSF | Entered Factory 2477 | -5/Factory | Evolved 2 slots: Propulsion x1, Utility x1 2736 | -5/Factory | Discovered new exit (range 10) 2741 | -5/Factory | Entered Extension 2758 | -5/Extension | Rescued a captive Derelict 2759 | -5/Extension | Rescued a captive Derelict 2907 | -5/Extension | Build established: Scavenger-Mutant 2922 | -5/Extension | Spotted B-75 Beast 2962 | -5/Extension | Spotted B-75 Beast 2966 | -5/Extension | Allies destroyed B-75 Beast 3099 | -5/Extension | Lost 3 parts (1p2n) 3280 | -5/Extension | Lost 5 parts (2p2u1w) 3341 | -5/Extension | Identified exit to Cetus 3420 | -5/Extension | Core integrity fell below 50% 3426 | -5/Extension | Build established: Mutant 3450 | -5/Extension | Lost 10 parts (6n1u3w) 3530 | -5/Extension | Core integrity fell below 20% 3539 | -5/Extension | Destroyed by Y-64 Sentinel with KE Penetrator Last Messages --------------- 03509_ Weight Redist. System destroyed. 03510_ Acquired Bore Cannon. 03513_ Critical hit (Burn: +37). 03514_ Bore Cannon destroyed. 03515_ Penetrated by Slug. 03519_ Imp. Coolant Injector destroyed. 03525_ Slug penetrates G-50 Soldier. 03528_ Slug penetrates Wall. 03529_ Penetrated by Slug. 03529_ Broken Melee Analysis Suite destroyed. 03529_ Hvy. Pick destroyed. 03531_ Penetrated by Slug. 03531_ G-50 Soldier destroyed. 03532_ Penetrated by Slug. 03534_ Slug penetrates Wall. 03535_ Penetrated by Slug. 03536_ H-66 Slayer suffers critical hit (Impale). 03536_ Destroyed Lgt. Fission Core. 03539_ Penetrated by Slug. Map ----- +----------------------------------------------------+ | | | | | | | | | | | | | | | | | | | | | | | | | | | | | | | | | | | | | | | | | ?????????????????????????????????????????????????? | | ?????????????????????????????????????????????????? | | ?????????????????????????????????????????????????? | | #####################????????????????????????????? | | ^ ^#??#########?????????????????? | | ############# ##### #??#%@YYg #??????????Y??????? | | ######??????# #???? ??##h#####Y#?????????????????? | | #???# #???? ??# h # #?????????????????? | | ####??????# #???# #?# # #?????????????????? | | ###???????# #???# #?# ]] # #?????????????????? | | "#???????# #???# #?# ] # ####??????????????? | | T"#???????# #???# #?# + #??????????????? | | ""#???????# #???# #?# * # #??????????????? | | ###???????# #???# #?######## #??????????????? | | T#????????# #???# #????????# #??????????????? | | ##????????# #???# #????????# #??????????????? | | #??# "### ##### ########## #??????????????? | | ###??# %* #??????????????? | | #????# [ ##################### #??????????????? | | #????????????????????????????# #??????????????? | | #????????????????????????????# #??????????????? | | ?????????????????????????????# #??????????????? | | ?????????????????????????????# #??????????????? | | ?????????????????????????????+ #??????????????? | | ?????????????????????????????# #??????????????? | | ?????????????????????????????# ^ #??????????????? | | ?????????????????????????????? #??????????????? | | ??????????????????????????????### #??????????????? | | ????????????????????????????????? #??????????????? | | ????????????????????????????????? #??????????????? | +----------------------------------------------------+ Best States ------------- Heat Dissipation 40 Coolant Potential 80 Energy Generation 28 Energy Capacity 375 Matter Stores 300 Matter Capacity 300 Sight Range 18 Terrain Scan Range 16 Terrain Scan Density 10 Additional Mass Support 9 Armor Coverage 225 Resistance: KI 20 Power Shielding 33 Evasion (%) 71 Targeting Accuracy 5 Melee Accuracy 5 Recoil Reduction 1 Item Schematics ----------------- None Robot Schematics ------------------ None Fabricated ------------ Nothing Alien Tech Used ----------------- None Achievements -------------- Deadly Force Challenges ------------ None Game ------ Seed ReactiveVortexBooster Manual? 0 Play Time 01:32:34 Cumulative 12.5 hours Start 2024.04.15 @ 23:59:06 End 2024.04.16 @ 12:12:52 Sessions 3 Manual Loads 0 Difficulty Rogue Special Mode None Game No. 12 Rogue 12 Adventurer 0 Explorer 0 Win Type - Total 0 Types 0/0/0/0/0/0/0/0/0 Lore% 13 Gallery% 18 Achievement% 17 Wizard Run 0 Options --------- Layout 1 ASCII 0 Keyboard 0 Movement Arrows Keybinds 0 Fullscreen 1 Font 24/Smallcaps Map View 50x35 Zoom Use 0% Tactical HUD 1 Map Filters NONE Filters NONE Steam 1 RUN: 85c8375b-152e-4d7a-a80e-f97945fce103